bitfinex/quotes_ETHUSD_20251117
["timestamp","ask_amount","ask_price","bid_price","bid_amount"]
[1763387131408,0.405504,3128.5,3127.5,0.001]
[1763387131640,0.01114386,3128.4,3127.5,0.001]
[1763387131841,0.405504,3128.3,3127.5,0.001]
[1763387132139,0.01114386,3128.2,3127.5,0.001]
[1763387132347,0.405504,3128.1,3127.5,0.001]
[1763387132840,0.405504,3128.0,3127.5,0.001]
[1763387133208,0.405504,3127.8,3127.5,0.001]
[1763387133633,0.865804,3127.8,3127.5,0.001]
[1763387134030,0.405504,3127.8,3127.5,0.001]
[1763387134342,0.4603,3127.7,3127.5,0.001]
[1763387134847,0.41664786,3127.6,3127.5,0.001]
[1763387135046,0.69089079,3127.6,3127.5,0.001]
[1763387135247,0.69089079,3127.6,3126.1,0.005]
[1763387135248,0.405504,3127.1,3126.1,0.005]
[1763387135447,0.405504,3126.9,3126.1,0.005]
[1763387136057,0.405504,3126.7,3126.1,0.005]
[1763387136407,0.405504,3127.1,3126.1,0.1995]
[1763387136620,0.405504,3127.1,3126.1,0.005]
[1763387136820,0.405504,3126.9,3126.1,0.005]
[1763387137019,0.47144386,3126.8,3126.1,0.005]
[1763387137311,0.405504,3126.7,3126.1,0.005]
[1763387137545,0.405504,3126.5,3126.1,0.005]
[1763387137850,0.41664786,3126.5,3126.1,0.005]
[1763387138023,0.405504,3126.3,3126.1,0.005]
[1763387138548,0.17839405,3126.4,3126.1,0.005]
[1763387138848,0.41664786,3127.0,3126.1,0.005]
[1763387139010,1.31249664,3126.6,3126.1,0.005]
[1763387139214,0.01114386,3126.5,3126.1,0.005]
[1763387139435,0.4603,3126.5,3126.1,0.005]
[1763387139647,0.90699264,3126.6,3126.1,0.005]
[1763387139811,1.36729264,3127.1,3126.1,0.1995]
[1763387140015,0.4603,3127.1,3126.1,0.1995]
[1763387140210,1.36729264,3127.1,3126.1,0.005]
[1763387140415,0.405504,3126.9,3126.1,0.005]
[1763387140648,0.90699264,3126.6,3126.1,0.005]
[1763387140948,0.405504,3126.5,3126.1,0.005]
[1763387141248,0.865804,3126.5,3126.1,0.005]
[1763387141431,0.405504,3126.5,3126.1,0.005]
[1763387141632,0.73895793,3126.5,3126.1,0.005]
[1763387142034,0.73815793,3126.5,3126.1,0.005]
[1763387142426,1.4311359,3128.3,3126.1,0.005]
[1763387142427,6.07708268,3127.2,3126.1,0.6549]
[1763387142630,6.07708268,3127.2,3126.1,0.1995]
[1763387142631,0.4623,3127.1,3126.1,0.1995]
[1763387142828,0.002,3127.1,3126.1,0.1995]
[1763387143443,0.405504,3126.9,3126.1,0.005]
[1763387143648,0.405504,3126.9,3126.1,0.1995]
[1763387143828,0.4603,3127.0,3126.1,0.1995]
[1763387144034,0.405504,3126.9,3126.1,0.1995]
[1763387144763,0.407504,3127.1,3126.1,0.1995]
[1763387145456,0.405504,3126.9,3126.1,0.005]
[1763387145682,0.01114386,3126.8,3126.1,0.005]
[1763387146261,1.31249664,3126.7,3126.1,0.005]
[1763387146565,0.01114386,3126.6,3126.1,0.005]
[1763387146856,1.69198057,3126.7,3126.1,0.005]
[1763387147223,0.41664786,3126.6,3126.1,0.005]
[1763387147453,0.865804,3126.6,3126.1,0.005]
[1763387147659,0.405504,3126.6,3126.1,0.1995]
[1763387147872,0.405504,3127.0,3126.1,0.1995]
[1763387148224,0.63889405,3127.0,3126.1,0.1995]
[1763387148444,0.405504,3126.9,3126.1,0.1995]
[1763387148667,0.002,3127.1,3126.1,0.1995]
[1763387149053,0.01114386,3127.0,3126.1,0.1995]
[1763387149457,0.002,3127.1,3126.2,0.4554]
[1763387151118,0.002,3127.1,3127.0,0.4966]
[1763387151286,0.002,3127.1,3127.0,0.4554]
[1763387153125,0.002,3127.1,3126.1,0.1995]
[1763387153271,0.002,3127.1,3127.0,0.4554]
[1763387155369,0.002,3127.1,3127.0,0.952]
[1763387158279,1.00728417,3129.3,3127.0,0.952]
[1763387158638,1.00728417,3129.3,3128.2,0.4983]
[1763387158639,0.005,3128.9,3128.2,0.4983]
[1763387158914,0.005,3128.9,3128.3,0.1692]
[1763387159078,0.6386,3128.9,3128.0,0.1692]
[1763387159833,0.4936,3128.8,3127.8,0.1802]
[1763387160125,0.405504,3128.7,3127.4,0.1802]
[1763387160537,0.4936,3128.8,3127.5,0.4659]
[1763387160825,0.145,3128.9,3127.1,0.6461]
[1763387160826,6.07708268,3128.6,3127.1,0.6461]
[1763387161039,0.405504,3128.4,3127.1,0.1802]
[1763387161321,0.1822,3127.2,3126.2,0.4659]
[1763387161618,0.1822,3127.2,3126.5,0.001]
[1763387163210,0.1822,3127.4,3126.5,0.001]
[1763387164100,0.2362,3126.6,3126.5,0.001]
[1763387164301,0.405504,3126.8,3126.5,0.001]
[1763387164600,0.405504,3126.6,3126.1,0.0028]
[1763387164800,1.31249664,3126.1,3125.1,0.005]
[1763387165050,0.1776,3125.2,3125.1,0.005]
[1763387165447,1.076704,3125.2,3125.1,0.005]
[1763387166013,0.4936,3125.8,3125.1,0.005]
[1763387166228,0.01114386,3125.7,3125.1,0.005]
[1763387166554,0.41664786,3125.7,3125.1,0.005]
[1763387166749,0.405504,3125.5,3125.1,0.005]
[1763387167036,0.6907112,3125.5,3125.1,0.005]
[1763387167205,0.405504,3125.3,3125.1,0.005]
[1763387168003,0.405504,3125.6,3125.1,0.005]
[1763387168204,0.899104,3125.6,3125.1,0.005]
[1763387168633,0.405504,3125.4,3125.1,0.005]
[1763387169147,0.405504,3125.2,3125.1,0.005]
[1763387169504,0.899104,3125.2,3125.1,0.005]
[1763387170030,0.91024786,3125.2,3125.1,0.005]
[1763387170923,1.194745,3125.2,3125.1,0.005]
[1763387171265,1.37982491,3125.2,3124.1,0.005]
[1763387171563,7.49057932,3124.8,3124.1,0.005]
[1763387171762,1.31249664,3124.7,3124.1,0.005]
[1763387172059,0.405504,3124.7,3123.1,0.1802]
[1763387172259,0.405504,3124.5,3123.1,0.1802]
[1763387172421,0.405504,3124.3,3123.1,0.1802]
[1763387172621,0.41664786,3124.3,3122.9,0.1802]
[1763387172826,0.405504,3124.1,3122.9,0.1802]
[1763387173069,0.18060966,3124.0,3123.0,0.4659]
[1763387173241,0.25607783,3123.9,3123.0,0.4659]
[1763387173557,0.18060966,3124.0,3123.0,0.4659]
[1763387173759,0.9181365,3124.7,3123.0,0.4659]
[1763387173957,0.4936,3124.6,3123.0,0.4659]
[1763387174259,0.18507991,3125.2,3123.1,0.03201946]
[1763387174443,0.005,3123.9,3123.2,0.4659]
[1763387174848,0.005,3124.9,3123.2,0.4659]
[1763387175037,0.005,3124.9,3124.8,0.1802]
[1763387175237,0.005,3124.9,3124.8,0.6461]
[1763387175438,0.005,3124.9,3124.8,0.4961]
[1763387175660,0.005,3124.9,3123.0,0.1303]
[1763387175661,0.005,3124.9,3124.4,0.1802]
[1763387175847,0.005,3124.9,3124.4,0.6461]
[1763387176372,0.4986,3126.9,3124.5,0.4659]
[1763387176586,0.005,3126.9,3125.8,0.1802]
[1763387177035,0.005,3126.9,3125.8,0.6461]
[1763387177237,0.005,3126.9,3126.8,0.1183]
[1763387177558,0.005,3126.9,3125.9,0.4906]
[1763387177965,0.005,3126.9,3126.8,0.1912]
[1763387178522,0.005,3126.9,3126.8,0.6818]
[1763387178724,0.005,3126.9,3126.6,0.1912]
[1763387179323,0.005,3126.9,3126.7,0.4906]
[1763387179869,0.005,3127.9,3126.8,0.03198157]
[1763387180026,0.005,3127.9,3126.7,0.4906]
[1763387180428,0.007,3128.9,3126.7,0.4906]
[1763387180626,0.007,3128.9,3126.8,0.03198157]
[1763387180862,0.007,3128.9,3128.8,0.1138]
[1763387181063,0.007,3128.9,3128.8,0.6044]
[1763387181726,0.002,3129.8,3128.8,0.6044]
[1763387181926,0.01114386,3131.8,3129.7,0.1912]
[1763387182232,0.005,3131.9,3130.8,0.1402]
[1763387182450,0.005,3131.9,3130.8,0.6308]
[1763387183382,0.4811,3131.5,3129.7,0.1912]
[1763387183532,0.4811,3131.5,3129.7,0.6818]
[1763387183724,0.005,3131.9,3129.7,0.6818]
[1763387183927,0.005,3131.9,3129.8,0.4906]
[1763387184126,0.005,3131.9,3129.9,0.0319499]
[1763387184366,0.005,3131.9,3130.0,0.4906]
[1763387185371,0.405504,3131.7,3130.0,0.4906]
[1763387185527,0.4811,3131.8,3130.0,0.4906]
[1763387185726,0.405504,3131.3,3130.0,0.4906]
[1763387185926,0.41664786,3130.8,3129.7,0.1912]
[1763387186131,0.405504,3130.8,3129.5,0.4906]
[1763387186368,0.1828,3130.7,3129.5,0.4906]
[1763387186668,0.405504,3130.6,3128.9,0.4906]
[1763387186870,0.405504,3130.6,3129.0,0.4906]
[1763387187176,0.01114386,3130.5,3129.0,0.4906]
[1763387187382,0.886604,3130.6,3129.0,0.4906]
[1763387187678,0.897204,3130.6,3129.0,0.4906]
[1763387187884,0.405504,3130.4,3129.0,0.4906]
[1763387188026,0.404704,3130.4,3129.0,0.4906]
[1763387188231,0.4917,3130.4,3129.0,0.4906]
[1763387188737,0.4917,3130.4,3128.8,0.5661]
[1763387188940,0.4917,3130.4,3128.8,0.1138]
[1763387189152,0.01114386,3130.3,3128.9,0.4523]
[1763387189347,0.01114386,3130.2,3128.9,0.4523]
[1763387189570,0.4917,3130.3,3128.9,0.4523]
[1763387190152,0.405504,3130.2,3128.9,0.4523]
[1763387190472,0.1828,3130.7,3129.0,0.03195909]
[1763387190671,0.50284386,3130.6,3128.8,0.1138]
[1763387190870,1.4098365,3130.6,3128.3,0.4523]
[1763387191045,1.4098365,3130.6,3127.2,0.1912]
[1763387191046,0.47868446,3130.5,3128.5,0.4523]
[1763387191236,0.50284386,3130.5,3128.5,0.4523]
[1763387191437,0.4917,3130.5,3128.5,0.4523]
[1763387192201,0.19394386,3130.7,3128.5,0.4523]
[1763387192202,0.4917,3130.4,3128.5,0.4523]
[1763387192690,0.405504,3130.3,3128.5,0.4523]
[1763387193060,0.405504,3130.1,3128.5,0.4523]
[1763387193263,0.01114386,3130.0,3128.5,0.4523]
[1763387193596,0.405504,3130.2,3128.5,0.4523]
[1763387193815,0.405504,3130.1,3128.5,0.4523]
[1763387194270,0.405504,3129.7,3128.5,0.4523]
[1763387194692,0.405504,3129.9,3128.5,0.4523]
[1763387195012,0.4917,3130.0,3128.5,0.4523]
[1763387195376,0.41664786,3129.9,3128.5,0.4523]
[1763387195580,0.405504,3129.9,3128.5,0.4523]
[1763387195767,0.897204,3129.9,3128.5,0.4523]
[1763387196517,0.1828,3130.7,3127.2,0.1912]
[1763387196518,0.405504,3129.7,3128.0,0.4523]
[1763387196816,0.01114386,3129.6,3128.0,0.4523]
[1763387197025,0.1825,3128.5,3126.8,0.1948]
[1763387197317,0.41664786,3128.4,3126.8,0.1948]
[1763387197614,0.897204,3128.4,3126.8,0.1948]
[1763387198111,0.405504,3128.2,3126.4,0.1948]
[1763387198314,0.01114386,3128.1,3126.4,0.1948]
[1763387198514,0.405504,3128.0,3126.4,0.1948]
[1763387198720,0.405504,3128.0,3125.9,0.6435]
[1763387198721,0.01114386,3127.9,3125.9,0.6435]
[1763387199017,0.405504,3127.8,3125.9,0.1912]
[1763387199184,0.405504,3127.6,3125.9,0.1912]
[1763387199379,0.41664786,3127.6,3125.9,0.1912]
[1763387199581,0.90699264,3128.1,3125.0,0.001]
[1763387199582,0.405504,3127.4,3125.3,0.1948]
[1763387199766,0.01114386,3127.3,3125.3,0.1948]
[1763387199960,0.01114386,3127.3,3125.0,0.001]
[1763387199961,3.60329798,3127.2,3125.0,0.001]
[1763387200208,0.405504,3127.0,3125.0,0.001]
[1763387200457,0.01114386,3126.9,3125.0,0.001]
[1763387200661,0.1895,3125.1,3125.0,0.001]
[1763387201171,1.086704,3125.1,3125.0,0.001]
[1763387201456,0.405504,3125.0,3124.7,0.001]
[1763387201624,0.601704,3124.8,3124.7,0.001]
[1763387202164,1.093404,3124.8,3124.7,0.001]
[1763387202459,1.093404,3124.8,3124.4,0.001]
[1763387202460,0.405504,3124.7,3124.4,0.001]
[1763387202672,0.01114386,3124.6,3122.1,0.4523]
[1763387202976,0.405504,3124.4,3122.1,0.4523]
[1763387203110,0.405504,3124.4,3124.3,0.001]
[1763387203311,0.405504,3124.6,3124.3,0.001]
[1763387203633,0.4917,3124.6,3122.6,0.4523]
[1763387203872,0.405504,3124.5,3122.6,0.4523]
[1763387204209,0.405504,3124.7,3122.6,0.4523]
[1763387204410,0.4917,3125.7,3122.6,0.4523]
[1763387204608,0.1962,3125.8,3122.7,0.405504]
[1763387204855,0.1962,3125.8,3122.6,0.4523]
[1763387205154,0.50284386,3125.7,3122.6,0.4523]
[1763387205563,0.79533169,3125.6,3122.7,0.03202356]
[1763387205757,0.01114386,3125.5,3122.7,0.03202356]
[1763387205962,0.405504,3122.7,3121.1,0.005]
[1763387206168,0.172,3122.8,3121.1,0.005]
[1763387206371,0.405504,3122.7,3121.1,0.005]
[1763387206664,0.21202817,3122.8,3121.1,0.005]
[1763387206867,0.405504,3122.7,3121.1,0.005]
[1763387207855,0.405504,3122.7,3121.2,0.4523]
[1763387208029,0.405504,3122.9,3121.2,0.4523]
[1763387208753,0.1962,3123.1,3121.3,0.03203793]
[1763387208917,0.1962,3123.8,3121.2,0.4523]
[1763387209357,0.04001664,3123.7,3121.3,0.03203793]
[1763387209559,0.44552064,3123.7,3121.2,0.4523]
[1763387209761,0.405504,3123.5,3121.2,0.4523]
[1763387209976,0.4455232,3123.5,3121.2,0.4523]
[1763387210172,0.9372232,3123.5,3121.2,0.4523]
[1763387210316,0.897204,3123.5,3121.2,0.4523]
[1763387210519,0.405504,3123.3,3121.2,0.4523]
[1763387210822,0.405504,3123.1,3121.2,0.4523]
[1763387211048,0.404704,3122.9,3121.2,0.4523]
[1763387211249,0.4917,3123.4,3121.3,0.1121]
[1763387211558,0.76223887,3123.3,3121.3,0.1121]
[1763387211762,0.4917,3123.2,3121.3,0.1121]
[1763387211931,0.4917,3123.2,3121.1,0.005]
[1763387211932,0.04002433,3123.1,3121.1,0.005]
[1763387212121,0.90699264,3123.0,3121.1,0.005]
[1763387212326,0.52714677,3122.9,3121.1,0.005]
[1763387212563,0.7222171,3122.8,3121.2,0.4523]
[1763387212876,0.4917,3123.5,3121.3,0.03203793]
[1763387213035,0.4917,3123.1,3121.4,0.4523]
[1763387213371,0.04002561,3123.0,3121.4,0.4523]
[1763387213538,0.405504,3122.9,3121.4,0.4523]
[1763387213721,0.4917,3123.1,3121.4,0.4523]
[1763387214322,0.53171792,3123.6,3121.4,0.4523]
[1763387214521,0.4917,3123.6,3121.4,0.4523]
[1763387214922,0.0400192,3123.5,3121.4,0.4523]
[1763387215127,0.405504,3123.3,3121.4,0.4523]
[1763387215328,0.405504,3123.3,3121.4,0.4843369]
[1763387215536,0.405504,3123.7,3121.4,0.4843369]
[1763387215748,0.897204,3123.7,3121.4,0.4523]
[1763387216223,0.4917,3123.6,3121.4,0.4523]
[1763387216725,0.1962,3123.8,3121.4,0.4523]
[1763387217068,0.1962,3123.8,3121.5,0.03203588]
[1763387217376,0.4917,3124.2,3121.5,0.03203588]
[1763387217521,0.4917,3124.2,3121.6,0.4826]
[1763387218358,0.405504,3124.0,3121.7,0.03203382]
[1763387218523,0.405504,3124.0,3121.8,0.4826]
[1763387218727,0.405504,3123.8,3121.9,0.03203177]
[1763387218988,0.405504,3123.8,3121.8,0.4826]
[1763387219673,0.4954,3124.5,3121.9,0.03203177]
[1763387219825,0.405504,3124.4,3121.9,0.03203177]
[1763387220029,0.4954,3124.5,3122.0,0.4826]
[1763387220225,0.04000768,3124.4,3122.0,0.4826]
[1763387220447,0.405504,3124.2,3122.0,0.4826]
[1763387220739,0.405504,3124.2,3121.3,0.1131]
[1763387220740,0.002,3123.8,3121.3,0.1131]
[1763387221057,0.405504,3123.6,3121.4,0.5146369]
[1763387221237,0.405504,3123.4,3121.4,0.4826]
[1763387221430,0.405504,3123.2,3121.3,0.1131]
[1763387221624,0.405504,3123.0,3121.3,0.1131]
[1763387221866,0.53542433,3123.1,3121.3,0.5957]
[1763387222025,0.405504,3123.0,3121.3,0.5957]
[1763387222427,0.405504,3122.9,3121.3,0.5957]
[1763387222673,0.04001792,3123.6,3121.3,0.62773725]
[1763387222886,0.405504,3123.3,3121.4,0.4826]
[1763387223073,0.09999999,3122.8,3120.0,0.405504]
[1763387223277,0.09999999,3123.5,3120.0,0.405504]
[1763387223496,1.0983245,3125.4,3120.0,0.405504]
[1763387223497,0.09999999,3124.1,3120.1,0.405504]
[1763387223714,0.09999999,3124.1,3120.3,0.405504]
[1763387224353,0.39645769,3125.6,3120.2,0.20891922]
[1763387224354,0.09999999,3125.3,3121.2,2.325504]
[1763387224554,0.6916,3125.8,3121.2,3.23249664]
[1763387224784,0.6916,3125.8,3121.7,2.325504]
[1763387224993,0.4954,3126.0,3122.0,0.405504]
[1763387225207,0.09999999,3125.7,3122.0,0.405504]
[1763387225489,0.005,3122.9,3122.0,0.400504]
[1763387225700,0.4954,3126.0,3122.0,0.400504]
[1763387225701,0.09999999,3126.0,3122.0,0.400504]
[1763387225864,0.23218848,3125.9,3122.1,2.47960925]
[1763387226053,0.1922,3125.9,3122.2,0.37871059]
[1763387226258,0.1922,3125.9,3122.4,0.90699264]
[1763387226454,0.23218848,3125.9,3122.4,0.90699264]
[1763387226694,0.4954,3126.1,3122.4,0.90699264]
[1763387226968,0.6876,3126.7,3122.5,1.50221484]
[1763387227291,0.09999999,3126.3,3122.6,0.24092075]
[1763387227597,0.405504,3126.2,3122.7,0.405504]
[1763387227776,0.03998592,3126.1,3122.7,0.405504]
[1763387228088,0.4954,3126.3,3122.7,0.405504]
[1763387228289,0.4954,3126.3,3122.9,1.31249664]
[1763387228590,0.4954,3126.3,3123.0,0.77170054]
[1763387228784,0.09999999,3126.0,3123.0,0.77170054]
[1763387229356,0.4954,3126.3,3123.0,0.77170054]
[1763387230192,0.4954,3126.3,3123.1,0.405504]
[1763387230353,0.16701662,3126.5,3123.3,1.31249664]
[1763387230710,0.66241662,3126.5,3123.5,0.405504]
[1763387230854,0.76241661,3126.5,3123.5,0.405504]
[1763387231282,0.4954,3126.4,3123.5,0.405504]
[1763387231554,0.09999999,3125.9,3123.0,0.77170054]
[1763387231753,0.03998976,3125.8,3123.0,0.77170054]
[1763387232004,0.1922,3125.8,3123.1,0.90699264]
[1763387232308,0.1922,3125.8,3123.2,0.4880738]
[1763387232483,0.1922,3125.8,3123.1,0.405504]
[1763387232484,0.6876,3125.8,3123.1,0.405504]
[1763387232994,0.1922,3126.1,3123.1,1.31249664]
[1763387233556,0.6876,3126.1,3123.1,1.31249664]
[1763387233958,0.0399872,3126.0,3123.1,1.31249664]
[1763387234175,0.0391872,3126.0,3123.1,1.31249664]
[1763387234515,0.0391872,3126.0,3123.0,7.17576756]
[1763387234516,0.16701662,3126.5,3123.5,0.405504]
[1763387235074,0.09999999,3126.2,3123.3,1.31249664]
[1763387235312,0.4954,3126.4,3123.3,1.31249664]
[1763387235488,0.1922,3126.1,3123.3,1.31249664]
[1763387236314,0.09999999,3125.6,3122.6,0.24092075]
[1763387236479,0.09999999,3125.6,3121.4,6.78695931]
[1763387236480,0.4454976,3125.5,3122.1,3.20288506]
[1763387236682,0.09999999,3125.1,3121.5,3.20358801]
[1763387236883,0.405504,3124.9,3121.4,3.20365743]
[1763387237115,0.09999999,3124.7,3121.8,5.618081]
[1763387237418,0.405504,3124.9,3121.8,5.618081]
[1763387237419,0.09999999,3124.3,3121.8,5.618081]
[1763387237622,0.09999999,3124.3,3121.9,0.5618081]
[1763387237921,0.4867,3124.2,3121.9,1.46880074]
[1763387238124,0.58669999,3124.9,3121.9,1.46880074]
[1763387238421,0.09999999,3124.6,3121.9,1.46880074]
[1763387238620,0.4867,3124.5,3121.9,1.46880074]
[1763387238926,0.4867,3124.5,3122.0,0.70868817]
[1763387239092,0.09999999,3124.6,3122.0,0.70868817]
[1763387239435,0.09999999,3123.7,3122.0,0.70868817]
[1763387239730,0.6729,3123.6,3121.0,5.618081]
[1763387239936,0.6729,3123.6,3121.1,0.90699264]
[1763387240081,0.6729,3123.6,3121.0,5.618081]
[1763387240082,0.4867,3123.5,3121.0,5.618081]
[1763387240428,0.1862,3123.6,3121.1,0.90699264]
[1763387240429,0.6729,3123.6,3121.1,0.90699264]
[1763387240628,0.6729,3123.6,3121.2,0.65250736]
[1763387240921,0.4867,3123.5,3121.2,0.65250736]
[1763387241281,0.4867,3123.5,3121.9,0.001]
[1763387242639,0.1862,3123.6,3121.9,0.001]
[1763387243304,0.1862,3123.9,3121.9,0.001]
[1763387244450,0.6729,3123.9,3121.9,0.001]
[1763387244590,0.1862,3123.9,3121.9,0.001]
[1763387244796,0.4867,3123.8,3121.9,0.001]
[1763387245836,0.04001664,3123.7,3121.9,0.001]
[1763387246030,0.4867,3123.6,3121.9,0.001]
[1763387246258,0.1862,3123.9,3121.9,0.001]
[1763387246452,0.405504,3124.9,3121.9,0.001]
[1763387246453,0.4867,3124.9,3122.5,0.90699264]
[1763387246736,0.58669999,3124.9,3122.6,0.65250736]
[1763387247029,0.58669999,3124.9,3122.2,0.405504]
[1763387247204,0.04000256,3124.8,3122.2,0.405504]
[1763387247706,0.405504,3124.2,3121.9,0.001]
[1763387247906,0.09999999,3123.8,3121.9,0.001]
[1763387248221,0.56029999,3124.1,3121.9,0.001]
[1763387248528,0.1894,3123.7,3121.9,0.001]
[1763387249028,0.6497,3123.7,3122.2,6.09437819]
[1763387249245,0.6497,3123.7,3122.3,0.60943782]
[1763387249449,0.4603,3123.6,3122.3,0.60943782]
[1763387249908,0.1894,3123.9,3122.7,6.09437819]
[1763387250107,0.09999999,3124.6,3122.8,0.60943782]
[1763387250108,0.1894,3124.1,3122.8,0.60943782]
[1763387250560,0.5003128,3124.0,3122.3,0.60943782]
[1763387250768,0.09999999,3123.9,3122.3,0.60943782]
[1763387251062,0.4603,3124.0,3122.3,0.60943782]
[1763387251207,0.4603,3123.9,3122.3,0.60943782]
[1763387251411,0.4603,3123.9,3122.4,0.6703816]
[1763387252138,0.04001536,3123.8,3122.4,0.6703816]
[1763387252337,0.4603,3123.9,3122.4,0.6703816]
[1763387252744,0.4603,3123.9,3122.7,6.09437819]
[1763387252915,0.04001536,3123.8,3122.0,6.09437819]
[1763387253122,0.04001536,3123.8,3122.1,0.60953782]
[1763387253338,0.09999999,3123.5,3121.9,0.001]
[1763387253515,0.04002049,3123.4,3121.9,0.001]
[1763387253711,0.4603,3123.4,3122.0,6.09437819]
[1763387254322,0.4603,3123.4,3121.9,0.001]
[1763387255071,0.1894,3122.0,3121.9,0.001]
[1763387255268,0.28939999,3122.0,3121.9,0.001]
[1763387255563,0.6497,3122.0,3120.7,6.09437819]
[1763387255737,0.6497,3122.0,3120.8,0.60943782]
[1763387255920,0.50033971,3121.9,3120.8,0.60943782]
[1763387256120,0.09999999,3121.7,3120.1,6.09437819]
[1763387256321,0.09999999,3121.2,3119.6,6.26143436]
[1763387256756,0.09999999,3121.2,3119.1,0.005]
[1763387256757,0.50034998,3121.1,3119.3,6.09437819]
[1763387256944,0.50034998,3121.1,3119.4,0.90699264]
[1763387257144,0.405504,3121.8,3119.5,0.70013708]
[1763387257145,0.4603,3121.8,3119.5,0.70013708]
[1763387257365,0.4603,3121.8,3120.6,6.09437819]
[1763387257574,0.04004228,3121.7,3120.1,6.09437819]
[1763387257731,0.4603,3121.8,3120.1,6.09437819]
[1763387258365,0.1894,3122.0,3120.7,0.90699264]
[1763387258528,0.1894,3122.0,3120.8,0.70013708]
[1763387259864,0.4603,3122.9,3121.6,6.09437819]
[1763387260068,0.4603,3122.9,3120.8,0.70013708]
[1763387260391,0.4603,3122.9,3121.5,6.09437819]
[1763387261563,0.09919999,3122.7,3121.1,6.09437819]
[1763387261968,0.50033074,3122.6,3121.1,6.09437819]
[1763387262155,0.55949999,3122.6,3121.1,6.09437819]
[1763387262355,0.4603,3122.6,3121.1,6.70381601]
[1763387263137,0.002,3122.9,3121.6,6.09437819]
[1763387263347,0.4603,3122.7,3121.6,6.09437819]
[1763387263553,0.4603,3122.7,3121.1,0.60943782]
[1763387263554,0.04003074,3122.6,3121.1,6.70381601]
[1763387263878,0.4603,3122.7,3121.2,0.6703816]
[1763387263879,0.55949999,3122.7,3121.2,0.6703816]
[1763387264085,0.4603,3122.6,3121.2,0.6703816]
[1763387264584,0.4593,3122.6,3121.2,0.6703816]
[1763387266259,0.4593,3122.6,3120.9,0.90699264]
[1763387266687,0.4593,3122.6,3121.3,6.09437819]
[1763387267350,0.4593,3122.6,3121.0,6.09437819]
[1763387268323,0.4593,3122.6,3121.1,0.90699264]
[1763387268627,0.002,3122.9,3121.5,6.09437819]
[1763387268789,0.002,3122.9,3121.6,0.60943782]
[1763387268991,0.4623,3122.9,3121.6,0.60943782]
[1763387269613,0.4623,3122.9,3121.4,6.09437819]
[1763387271322,0.4623,3122.9,3121.5,0.90699264]
[1763387273529,0.002,3122.9,3122.4,6.09437819]
[1763387274325,0.002,3123.3,3122.5,0.90699264]
[1763387274527,0.1894,3125.2,3123.3,0.90699264]
[1763387274528,0.4603,3124.8,3123.3,0.90699264]
[1763387274726,0.4603,3124.8,3123.2,7.00137083]
[1763387274727,0.6497,3125.2,3123.8,6.09437819]
[1763387274894,0.1894,3125.2,3123.8,6.09437819]
[1763387275089,0.1894,3125.2,3124.3,6.09437819]
[1763387275292,0.4603,3125.6,3124.3,6.09437819]
[1763387275492,0.1894,3126.2,3124.4,0.90699264]
[1763387275825,0.09919999,3125.7,3123.9,1.51643046]
[1763387276032,0.4603,3125.8,3124.3,6.09437819]
[1763387276228,0.4603,3125.8,3124.4,0.90699264]
[1763387276541,0.4603,3125.8,3124.3,6.09437819]
[1763387276840,0.4603,3125.8,3124.2,0.90699264]
[1763387277190,0.4603,3125.8,3124.2,0.90599264]
[1763387277544,0.4603,3125.8,3124.3,0.70003708]
[1763387278116,0.4603,3125.8,3124.6,6.09437819]
[1763387278905,0.4603,3125.8,3124.3,0.70003708]
[1763387278906,0.1894,3126.2,3125.1,6.09437819]
[1763387279108,0.1894,3126.2,3125.1,3.61611819]
[1763387279424,0.09919999,3125.8,3123.3,6.09437819]
[1763387279738,0.4841,3125.7,3123.9,0.90699264]
[1763387279890,0.4841,3125.7,3124.0,0.70013708]
[1763387280093,0.4841,3125.7,3123.8,6.09437819]
[1763387280320,0.09919999,3125.3,3123.3,6.09437819]
[1763387280528,0.4833,3125.7,3123.4,0.90699264]
[1763387280692,0.09919999,3125.8,3123.5,0.70013708]
[1763387280893,0.09919999,3125.6,3123.5,0.70013708]
[1763387281525,0.002,3125.9,3123.9,0.90699264]
[1763387282232,0.1839,3124.0,3121.8,2.27556223]
[1763387282433,0.1839,3124.0,3122.5,6.09437819]
[1763387282632,0.4841,3124.7,3123.0,6.09437819]
[1763387283016,0.4841,3124.7,3123.1,0.90699264]
[1763387283564,0.4841,3124.7,3123.0,6.09437819]
[1763387283718,0.4841,3124.7,3123.1,0.60943782]
[1763387284241,0.4841,3124.7,3122.8,0.90699264]
[1763387284918,0.09919999,3123.9,3121.9,0.22755622]
[1763387285270,0.09919999,3123.9,3121.5,6.09537819]
[1763387285473,0.09919999,3123.3,3121.5,6.09537819]
[1763387285672,0.09919999,3122.6,3121.5,0.001]
[1763387285954,0.889604,3123.7,3121.5,0.001]
[1763387286254,0.1839,3122.5,3121.5,0.001]
[1763387286781,0.1839,3123.0,3121.8,6.09437819]
[1763387286955,0.4841,3122.8,3121.8,6.09437819]
[1763387287924,0.1839,3123.0,3121.8,6.09437819]
[1763387288119,0.4841,3123.2,3121.9,0.90699264]
[1763387288342,0.4841,3123.7,3122.4,6.09437819]
[1763387288934,0.4841,3123.7,3122.0,0.70013708]
[1763387289243,0.4841,3123.7,3121.7,0.90699264]
[1763387289647,0.4841,3123.7,3121.8,0.405504]
[1763387290057,0.1839,3123.8,3121.8,0.405504]
[1763387290222,0.668,3124.3,3122.5,0.405504]
[1763387290424,0.1839,3124.3,3122.5,0.405504]
[1763387290650,0.668,3124.6,3122.5,0.405504]
[1763387291164,0.668,3124.6,3122.7,0.405504]